[Event "Early-Titled-Tuesday-Blitz-January-30-2024"]
[Site "Chess.com"]
[Date "2024.01.30"]
[Round "9"]
[White "SharapovEvgeny"]
[Black "Orujov2008"]
[Result "0-1"]
[WhiteElo "2558"]
[BlackElo "2715"]
[TimeControl "180+1"]
[EndTime "9:47:51 PST"]
[Termination "Orujov2008 won by resignation"]

1. e4 {[%clk 0:03:00.1]} 1... c5 {[%clk 0:02:59.7]} 2. Nf3 {[%clk 0:03:00.2]}
2... d6 {[%clk 0:02:55.8]} 3. d4 {[%clk 0:03:00.1]} 3... cxd4 {[%clk 0:02:56.7]}
4. Nxd4 {[%clk 0:03:00.5]} 4... Nf6 {[%clk 0:02:54.9]} 5. f3 {[%clk 0:03:00.9]}
5... e5 {[%clk 0:02:54]} 6. Nb3 {[%clk 0:03:00.8]} 6... Be7 {[%clk 0:02:45.5]}
7. c4 {[%clk 0:03:00.3]} 7... O-O {[%clk 0:02:44]} 8. Nc3 {[%clk 0:03:00.4]}
8... Be6 {[%clk 0:02:42.5]} 9. Be3 {[%clk 0:03:00.1]} 9... Nc6 {[%clk
0:02:37.3]} 10. Be2 {[%clk 0:03:00.1]} 10... Rc8 {[%clk 0:02:32.1]} 11. O-O
{[%clk 0:02:59.6]} 11... Nd7 {[%clk 0:02:27.4]} 12. Nd5 {[%clk 0:02:59.2]} 12...
Bg5 {[%clk 0:02:21.2]} 13. Bf2 {[%clk 0:02:58.9]} 13... f5 {[%clk 0:02:16]} 14.
exf5 {[%clk 0:02:58.8]} 14... Bxf5 {[%clk 0:02:16.9]} 15. Bd3 {[%clk 0:02:59]}
15... Be6 {[%clk 0:02:10.9]} 16. Be4 {[%clk 0:02:58.8]} 16... Ne7 {[%clk
0:02:04]} 17. Nxe7+ {[%clk 0:02:56.9]} 17... Qxe7 {[%clk 0:02:01.4]} 18. Bd5
{[%clk 0:02:57.2]} 18... Nf6 {[%clk 0:01:55.2]} 19. Bxa7 {[%clk 0:02:33.5]}
19... Nxd5 {[%clk 0:01:35.6]} 20. cxd5 {[%clk 0:02:33.2]} 20... Bd7 {[%clk
0:01:36.5]} 21. Bf2 {[%clk 0:02:26.7]} 21... Bb5 {[%clk 0:01:31]} 22. Re1 {[%clk
0:02:26.5]} 22... Bc4 {[%clk 0:01:31.9]} 23. Na5 {[%clk 0:02:20.5]} 23... Ba6
{[%clk 0:01:31.6]} 24. a4 {[%clk 0:02:16.8]} 24... Rf4 {[%clk 0:01:27.1]} 25.
Re4 {[%clk 0:01:59.1]} 25... Rxe4 {[%clk 0:01:16.2]} 26. fxe4 {[%clk 0:01:59.2]}
26... Bf4 {[%clk 0:01:17.1]} 27. b4 {[%clk 0:01:52.2]} 27... Qc7 {[%clk
0:01:13.8]} 28. g3 {[%clk 0:01:48.1]} 28... Bh6 {[%clk 0:01:09.7]} 29. Qe1
{[%clk 0:01:33.4]} 29... Qc2 {[%clk 0:01:05.5]} 30. Be3 {[%clk 0:01:10.9]} 30...
Bxe3+ {[%clk 0:00:55.8]} 31. Qxe3 {[%clk 0:01:10.8]} 31... Qb2 {[%clk
0:00:56.7]} 32. Qa3 {[%clk 0:00:46.6]} 32... Rc1+ {[%clk 0:00:44.3]} 33. Rxc1
{[%clk 0:00:41.8]} 33... Qxa3 {[%clk 0:00:45.2]} 34. Rc8+ {[%clk 0:00:42]} 34...
Kf7 {[%clk 0:00:42.7]} 35. b5 {[%clk 0:00:42.4]} 35... Qxa4 {[%clk 0:00:40.1]}
36. bxa6 {[%clk 0:00:40]} 36... Qxa5 {[%clk 0:00:38.9]} 37. axb7 {[%clk
0:00:40.2]} 37... Qb6+ {[%clk 0:00:38.8]} 38. Kg2 {[%clk 0:00:39]} 38... Qxb7
{[%clk 0:00:38.8]} 0-1

[Event "Early-Titled-Tuesday-Blitz-January-30-2024"]
[Site "Chess.com"]
[Date "2024.01.30"]
[Round "9"]
[White "jaskol95"]
[Black "Iana_Shirova"]
[Result "1-0"]
[WhiteElo "2543"]
[BlackElo "2286"]
[TimeControl "180+1"]
[EndTime "9:47:51 PST"]
[Termination "jaskol95 won by checkmate"]

1. e4 {[%clk 0:03:00.9]} 1... e5 {[%clk 0:02:59.1]} 2. Nf3 {[%clk 0:03:01.1]}
2... Nc6 {[%clk 0:02:56.6]} 3. Bc4 {[%clk 0:03:00.7]} 3... Bc5 {[%clk
0:02:56.2]} 4. c3 {[%clk 0:03:00.8]} 4... Nf6 {[%clk 0:02:56.2]} 5. d4 {[%clk
0:03:01.4]} 5... exd4 {[%clk 0:02:56]} 6. cxd4 {[%clk 0:03:02.3]} 6... Bb4+
{[%clk 0:02:56.4]} 7. Kf1 {[%clk 0:03:03]} 7... Nxe4 {[%clk 0:02:44.8]} 8. d5
{[%clk 0:03:02.8]} 8... Bc5 {[%clk 0:02:41.5]} 9. dxc6 {[%clk 0:02:11]} 9... O-O
{[%clk 0:02:33]} 10. Be3 {[%clk 0:01:54.3]} 10... Bxe3 {[%clk 0:02:21.5]} 11.
fxe3 {[%clk 0:01:55.2]} 11... bxc6 {[%clk 0:02:21.5]} 12. Nc3 {[%clk 0:01:45]}
12... Ng5 {[%clk 0:02:14.9]} 13. h4 {[%clk 0:01:09.4]} 13... Ne6 {[%clk
0:02:05.2]} 14. Bxe6 {[%clk 0:00:53.3]} 14... fxe6 {[%clk 0:02:06.1]} 15. Kg1
{[%clk 0:00:53.9]} 15... c5 {[%clk 0:01:45.9]} 16. Rh3 {[%clk 0:00:52.6]} 16...
Bb7 {[%clk 0:01:44.9]} 17. Qe2 {[%clk 0:00:48.8]} 17... d5 {[%clk 0:01:20.2]}
18. Rf1 {[%clk 0:00:44.2]} 18... d4 {[%clk 0:01:17.8]} 19. exd4 {[%clk
0:00:43.2]} 19... cxd4 {[%clk 0:01:18.7]} 20. Qxe6+ {[%clk 0:00:40.5]} 20... Kh8
{[%clk 0:01:18.2]} 21. Nd1 {[%clk 0:00:25]} 21... Bc8 {[%clk 0:01:17]} 22. Qe4
{[%clk 0:00:17.2]} 22... Bxh3 {[%clk 0:01:17.2]} 23. gxh3 {[%clk 0:00:12.1]}
23... c5 {[%clk 0:01:17.2]} 24. Ng5 {[%clk 0:00:12.3]} 24... Rxf1+ {[%clk
0:01:10.4]} 25. Kxf1 {[%clk 0:00:13.2]} 25... Qf6+ {[%clk 0:01:10.6]} 26. Nf2
{[%clk 0:00:13.8]} 26... g6 {[%clk 0:00:44.4]} 27. Qxa8+ {[%clk 0:00:13.5]}
27... Kg7 {[%clk 0:00:45]} 28. Qb7+ {[%clk 0:00:13.7]} 28... Kf8 {[%clk
0:00:43.5]} 29. Nxh7+ {[%clk 0:00:13.7]} 29... Kg8 {[%clk 0:00:43.8]} 30. Nxf6+
{[%clk 0:00:14.6]} 30... Kh8 {[%clk 0:00:44.7]} 31. Qh7# {[%clk 0:00:14.9]} 1-0

[Event "Early-Titled-Tuesday-Blitz-January-30-2024"]
[Site "Chess.com"]
[Date "2024.01.30"]
[Round "9"]
[White "Perecke"]
[Black "AlexeiShirov"]
[Result "0-1"]
[WhiteElo "2575"]
[BlackElo "2760"]
[TimeControl "180+1"]
[EndTime "9:47:58 PST"]
[Termination "AlexeiShirov won by resignation"]

1. e4 {[%clk 0:02:44.6]} 1... e5 {[%clk 0:02:59.2]} 2. Nf3 {[%clk 0:02:44.6]}
2... Nc6 {[%clk 0:02:59.2]} 3. Bb5 {[%clk 0:02:45.1]} 3... a6 {[%clk 0:02:58.8]}
4. Ba4 {[%clk 0:02:45.8]} 4... Nf6 {[%clk 0:02:58.9]} 5. O-O {[%clk 0:02:46.5]}
5... b5 {[%clk 0:02:58.8]} 6. Bb3 {[%clk 0:02:46.7]} 6... Bc5 {[%clk 0:02:58.8]}
7. c3 {[%clk 0:02:41.6]} 7... d6 {[%clk 0:02:58.3]} 8. a4 {[%clk 0:02:41.6]}
8... Rb8 {[%clk 0:02:57.1]} 9. d4 {[%clk 0:02:40.8]} 9... Bb6 {[%clk 0:02:57.1]}
10. Re1 {[%clk 0:02:39.7]} 10... Bg4 {[%clk 0:02:49.6]} 11. Be3 {[%clk
0:02:28.3]} 11... O-O {[%clk 0:02:41.7]} 12. axb5 {[%clk 0:02:12.8]} 12... axb5
{[%clk 0:02:40.3]} 13. d5 {[%clk 0:02:10.5]} 13... Na5 {[%clk 0:02:33.1]} 14.
Bxb6 {[%clk 0:01:52.9]} 14... Bxf3 {[%clk 0:02:31.8]} 15. gxf3 {[%clk 0:01:40]}
15... cxb6 {[%clk 0:02:28.8]} 16. Nd2 {[%clk 0:01:34.6]} 16... Nh5 {[%clk
0:02:27.8]} 17. Nf1 {[%clk 0:01:30.6]} 17... Nf4 {[%clk 0:02:19.1]} 18. Ng3
{[%clk 0:01:27.9]} 18... Qf6 {[%clk 0:02:04.8]} 19. Ba2 {[%clk 0:01:22.5]} 19...
Nc4 {[%clk 0:01:58.7]} 20. b3 {[%clk 0:01:09.6]} 20... Nb2 {[%clk 0:01:58]} 21.
Qd2 {[%clk 0:01:03]} 21... Nbd3 {[%clk 0:01:57.1]} 22. Re3 {[%clk 0:01:00.7]}
22... Nh3+ {[%clk 0:01:55.8]} 23. Kg2 {[%clk 0:00:45.3]} 23... Ndf4+ {[%clk
0:01:46.3]} 24. Kh1 {[%clk 0:00:45.5]} 24... Ra8 {[%clk 0:01:45.6]} 25. Rf1
{[%clk 0:00:34.9]} 25... Ra3 {[%clk 0:01:44]} 26. Ree1 {[%clk 0:00:28.7]} 26...
Rfa8 {[%clk 0:01:36.5]} 27. Bb1 {[%clk 0:00:21.8]} 27... Rxb3 {[%clk 0:01:35.5]}
28. Bc2 {[%clk 0:00:19.8]} 28... Rb2 {[%clk 0:01:30.6]} 29. Rb1 {[%clk 0:00:19]}
29... Raa2 {[%clk 0:01:19.5]} 30. Rxb2 {[%clk 0:00:19.1]} 30... Rxb2 {[%clk
0:01:19.4]} 31. Rb1 {[%clk 0:00:15.2]} 31... Rxb1+ {[%clk 0:01:01.6]} 32. Bxb1
{[%clk 0:00:16.1]} 32... h5 {[%clk 0:00:59.2]} 33. Nf5 {[%clk 0:00:06.2]} 33...
Qg5 {[%clk 0:00:57.8]} 0-1

[Event "Early-Titled-Tuesday-Blitz-January-30-2024"]
[Site "Chess.com"]
[Date "2024.01.30"]
[Round "9"]
[White "ChEsper99"]
[Black "djano"]
[Result "0-1"]
[WhiteElo "2146"]
[BlackElo "2646"]
[TimeControl "180+1"]
[EndTime "9:48:00 PST"]
[Termination "djano won on time"]

1. e4 {[%clk 0:02:59.2]} 1... e5 {[%clk 0:03:00.2]} 2. Nf3 {[%clk 0:02:58.6]}
2... Bc5 {[%clk 0:03:00.3]} 3. c3 {[%clk 0:02:52]} 3... Nf6 {[%clk 0:02:54.1]}
4. d4 {[%clk 0:02:50.7]} 4... exd4 {[%clk 0:02:53.9]} 5. cxd4 {[%clk 0:02:51.6]}
5... Bb4+ {[%clk 0:02:54.5]} 6. Bd2 {[%clk 0:02:47.6]} 6... Qe7 {[%clk
0:02:53.2]} 7. Bxb4 {[%clk 0:02:35.2]} 7... Qxb4+ {[%clk 0:02:51.7]} 8. Qd2
{[%clk 0:02:31.9]} 8... Nc6 {[%clk 0:02:49]} 9. Bd3 {[%clk 0:02:20.9]} 9... d5
{[%clk 0:02:44]} 10. Nc3 {[%clk 0:01:56.9]} 10... dxe4 {[%clk 0:02:39.3]} 11.
Nxe4 {[%clk 0:01:56.6]} 11... Qxd2+ {[%clk 0:02:31.6]} 12. Kxd2 {[%clk 0:01:55]}
12... Nd5 {[%clk 0:02:32]} 13. Nc3 {[%clk 0:01:45.2]} 13... Nce7 {[%clk
0:02:29]} 14. Bc4 {[%clk 0:01:32.3]} 14... Be6 {[%clk 0:02:27.4]} 15. Ng5 {[%clk
0:01:26.4]} 15... O-O-O {[%clk 0:02:27.7]} 16. Nxe6 {[%clk 0:01:25.7]} 16...
fxe6 {[%clk 0:02:28.3]} 17. Nxd5 {[%clk 0:01:12]} 17... Nxd5 {[%clk 0:02:27.7]}
18. Rhe1 {[%clk 0:01:09.7]} 18... Rd6 {[%clk 0:02:18.1]} 19. Re4 {[%clk
0:00:40.4]} 19... Kd7 {[%clk 0:02:17.6]} 20. Rae1 {[%clk 0:00:36.7]} 20... Re8
{[%clk 0:02:17.8]} 21. Bxd5 {[%clk 0:00:31.6]} 21... Rxd5 {[%clk 0:02:17.6]} 22.
Kc3 {[%clk 0:00:30.7]} 22... Rd6 {[%clk 0:02:11]} 23. f4 {[%clk 0:00:29.8]}
23... Rf8 {[%clk 0:02:07.8]} 24. g3 {[%clk 0:00:28.9]} 24... Rf5 {[%clk
0:02:07.8]} 25. Re5 {[%clk 0:00:28.4]} 25... Rf6 {[%clk 0:02:02.1]} 26. R1e4
{[%clk 0:00:24.1]} 26... a5 {[%clk 0:02:00.6]} 27. h4 {[%clk 0:00:13.8]} 27...
b6 {[%clk 0:01:58.2]} 28. g4 {[%clk 0:00:11.5]} 28... Rc6+ {[%clk 0:01:56.5]}
29. Kd2 {[%clk 0:00:10.3]} 29... Rd6 {[%clk 0:01:56.9]} 30. h5 {[%clk
0:00:07.6]} 30... Rf7 {[%clk 0:01:54.2]} 31. Ke3 {[%clk 0:00:06.6]} 31... h6
{[%clk 0:01:52.5]} 32. g5 {[%clk 0:00:06.1]} 32... c6 {[%clk 0:01:46.8]} 33. Kf3
{[%clk 0:00:03.5]} 33... b5 {[%clk 0:01:45.8]} 34. Kg4 {[%clk 0:00:03.4]} 34...
a4 {[%clk 0:01:46.4]} 35. f5 {[%clk 0:00:01.5]} 35... exf5+ {[%clk 0:01:46.2]}
36. Rxf5 {[%clk 0:00:02.4]} 36... Rxf5 {[%clk 0:01:45.1]} 37. Kxf5 {[%clk
0:00:03.3]} 37... Rd5+ {[%clk 0:01:45.8]} 38. Kg4 {[%clk 0:00:03.5]} 38... Rxg5+
{[%clk 0:01:45.4]} 39. Kh4 {[%clk 0:00:04.2]} 39... Kd6 {[%clk 0:01:41.6]} 40.
Rf4 {[%clk 0:00:04.2]} 40... Kd5 {[%clk 0:01:41.4]} 41. Rf7 {[%clk 0:00:02.3]}
41... Kxd4 {[%clk 0:01:39.4]} 42. Rc7 {[%clk 0:00:02]} 42... Kc5 {[%clk
0:01:38.6]} 43. Rf7 {[%clk 0:00:01.6]} 43... Rg2 {[%clk 0:01:38]} 44. Rf4 {[%clk
0:00:01.6]} 44... Kb6 {[%clk 0:01:38.5]} 45. Rg4 {[%clk 0:00:01.7]} 45... Rxg4+
{[%clk 0:01:37.2]} 46. Kxg4 {[%clk 0:00:02.6]} 46... c5 {[%clk 0:01:35.5]} 47.
Kf5 {[%clk 0:00:02.7]} 47... a3 {[%clk 0:01:33.9]} 0-1

[Event "Early-Titled-Tuesday-Blitz-January-30-2024"]
[Site "Chess.com"]
[Date "2024.01.30"]
[Round "9"]
[White "jjlai1111"]
[Black "CristianS27"]
[Result "0-1"]
[WhiteElo "2336"]
[BlackElo "2561"]
[TimeControl "180+1"]
[EndTime "9:48:03 PST"]
[Termination "CristianS27 won by resignation"]

1. d4 {[%clk 0:02:58]} 1... Nf6 {[%clk 0:02:53.5]} 2. c4 {[%clk 0:02:57.6]} 2...
g6 {[%clk 0:02:53]} 3. Nc3 {[%clk 0:02:57.5]} 3... Bg7 {[%clk 0:02:53.9]} 4. e4
{[%clk 0:02:57.6]} 4... d6 {[%clk 0:02:54.4]} 5. Nf3 {[%clk 0:02:58.3]} 5... O-O
{[%clk 0:02:54.9]} 6. Be2 {[%clk 0:02:59.1]} 6... e5 {[%clk 0:02:55.5]} 7. Be3
{[%clk 0:02:57.6]} 7... exd4 {[%clk 0:02:56.4]} 8. Nxd4 {[%clk 0:02:57.5]} 8...
Re8 {[%clk 0:02:57.3]} 9. f3 {[%clk 0:02:57.5]} 9... Nc6 {[%clk 0:02:57.3]} 10.
O-O {[%clk 0:02:55]} 10... Nh5 {[%clk 0:02:56.5]} 11. Nd5 {[%clk 0:02:50.8]}
11... Be5 {[%clk 0:02:49.1]} 12. f4 {[%clk 0:02:29]} 12... Bxd4 {[%clk
0:02:35.1]} 13. Bxh5 {[%clk 0:01:57.3]} 13... Bxe3+ {[%clk 0:02:23.5]} 14. Nxe3
{[%clk 0:01:58.2]} 14... gxh5 {[%clk 0:02:08.8]} 15. Qxh5 {[%clk 0:01:59.1]}
15... Rxe4 {[%clk 0:01:53.7]} 16. Rf3 {[%clk 0:01:54.6]} 16... Qf6 {[%clk
0:01:39.3]} 17. Nd5 {[%clk 0:01:50.2]} 17... Qd4+ {[%clk 0:01:35]} 18. Kh1
{[%clk 0:01:49.3]} 18... Be6 {[%clk 0:01:22.9]} 19. Rg3+ {[%clk 0:00:48.8]}
19... Kh8 {[%clk 0:01:22.6]} 20. Rd1 {[%clk 0:00:33.1]} 20... Bxd5 {[%clk
0:00:45.5]} 21. cxd5 {[%clk 0:00:29.3]} 21... Rae8 {[%clk 0:00:42.2]} 22. h4
{[%clk 0:00:19]} 22... Qxd1+ {[%clk 0:00:24.7]} 23. Qxd1 {[%clk 0:00:19.9]}
23... Re1+ {[%clk 0:00:25]} 24. Qxe1 {[%clk 0:00:20.4]} 24... Rxe1+ {[%clk
0:00:25.8]} 25. Kh2 {[%clk 0:00:21.2]} 25... Ne7 {[%clk 0:00:24.1]} 26. Rd3
{[%clk 0:00:16.7]} 26... Re2 {[%clk 0:00:23.6]} 0-1

[Event "Early-Titled-Tuesday-Blitz-January-30-2024"]
[Site "Chess.com"]
[Date "2024.01.30"]
[Round "9"]
[White "aghasiyevkamal"]
[Black "andrzej"]
[Result "1-0"]
[WhiteElo "2606"]
[BlackElo "2451"]
[TimeControl "180+1"]
[EndTime "9:48:04 PST"]
[Termination "aghasiyevkamal won on time"]

1. d4 {[%clk 0:02:52.6]} 1... d5 {[%clk 0:02:59.9]} 2. c4 {[%clk 0:02:52]} 2...
dxc4 {[%clk 0:03:00.5]} 3. e3 {[%clk 0:02:46]} 3... Nf6 {[%clk 0:03:00.5]} 4.
Bxc4 {[%clk 0:02:45.9]} 4... e6 {[%clk 0:03:00.9]} 5. Nf3 {[%clk 0:02:45.5]}
5... c5 {[%clk 0:03:00.8]} 6. O-O {[%clk 0:02:44.7]} 6... Nc6 {[%clk 0:03:01.4]}
7. Nc3 {[%clk 0:02:41.5]} 7... a6 {[%clk 0:03:01.7]} 8. Qe2 {[%clk 0:02:26]}
8... b5 {[%clk 0:03:00.6]} 9. Bb3 {[%clk 0:02:24.9]} 9... Bb7 {[%clk 0:02:58.1]}
10. a3 {[%clk 0:02:21.9]} 10... Be7 {[%clk 0:02:52.3]} 11. dxc5 {[%clk
0:02:20.7]} 11... Bxc5 {[%clk 0:02:52.2]} 12. e4 {[%clk 0:02:20.3]} 12... O-O
{[%clk 0:02:16.3]} 13. Bg5 {[%clk 0:02:13.7]} 13... h6 {[%clk 0:02:04.4]} 14.
Rad1 {[%clk 0:02:10.4]} 14... Qc7 {[%clk 0:01:44.6]} 15. Bxf6 {[%clk 0:02:02.5]}
15... gxf6 {[%clk 0:01:45.5]} 16. Qd2 {[%clk 0:01:52.8]} 16... Kh7 {[%clk
0:01:45]} 17. Bc2 {[%clk 0:01:52.2]} 17... Rg8 {[%clk 0:01:37.9]} 18. Qd7 {[%clk
0:01:45.4]} 18... Rac8 {[%clk 0:01:20]} 19. e5+ {[%clk 0:01:33.6]} 19... f5
{[%clk 0:01:19]} 20. Bxf5+ {[%clk 0:01:33.6]} 20... exf5 {[%clk 0:01:15.5]} 21.
Qxf5+ {[%clk 0:01:33.6]} 21... Kh8 {[%clk 0:00:52.9]} 22. Rd7 {[%clk 0:01:33.4]}
22... Nd4 {[%clk 0:00:30.8]} 23. Qf6+ {[%clk 0:01:29.7]} 23... Rg7 {[%clk
0:00:23.2]} 24. Rxc7 {[%clk 0:01:22.5]} 24... Nxf3+ {[%clk 0:00:21.5]} 25. Kh1
{[%clk 0:01:10.1]} 25... Rxc7 {[%clk 0:00:21.6]} 26. Qd8+ {[%clk 0:01:09]} 26...
Kh7 {[%clk 0:00:19.6]} 27. Qxc7 {[%clk 0:01:09.2]} 27... f5 {[%clk 0:00:10.5]}
28. Qxc5 {[%clk 0:01:03.8]} 28... Nh4 {[%clk 0:00:09.6]} 29. f3 {[%clk
0:01:02.2]} 29... Nxg2 {[%clk 0:00:07.2]} 30. Nd5 {[%clk 0:00:58.9]} 30... Nh4
{[%clk 0:00:04.4]} 31. Nf6+ {[%clk 0:00:57.4]} 31... Kg6 {[%clk 0:00:02.2]} 32.
Rg1+ {[%clk 0:00:54.5]} 32... Kf7 {[%clk 0:00:01]} 33. Qc7+ {[%clk 0:00:53.8]}
33... Ke6 {[%clk 0:00:01.4]} 34. Qd6+ {[%clk 0:00:51.7]} 1-0

[Event "Early-Titled-Tuesday-Blitz-January-30-2024"]
[Site "Chess.com"]
[Date "2024.01.30"]
[Round "9"]
[White "AlmasRakhmatullaev"]
[Black "FabianoCaruana"]
[Result "1/2-1/2"]
[WhiteElo "2975"]
[BlackElo "3070"]
[TimeControl "180+1"]
[EndTime "9:48:07 PST"]
[Termination "Game drawn by repetition"]

1. e4 {[%clk 0:03:00.9]} 1... e5 {[%clk 0:02:59.8]} 2. Nf3 {[%clk 0:02:59.1]}
2... Nc6 {[%clk 0:03:00.3]} 3. Bc4 {[%clk 0:02:54.8]} 3... Nf6 {[%clk
0:02:59.7]} 4. Ng5 {[%clk 0:02:54.5]} 4... d5 {[%clk 0:02:59.4]} 5. exd5 {[%clk
0:02:54.3]} 5... Na5 {[%clk 0:03:00]} 6. Bb5+ {[%clk 0:02:54.6]} 6... c6 {[%clk
0:03:00.6]} 7. dxc6 {[%clk 0:02:55.5]} 7... bxc6 {[%clk 0:03:01.5]} 8. Bd3
{[%clk 0:02:55.7]} 8... Nd5 {[%clk 0:02:59.5]} 9. Nf3 {[%clk 0:02:52.7]} 9...
Bd6 {[%clk 0:02:58.6]} 10. O-O {[%clk 0:02:52.3]} 10... Nf4 {[%clk 0:02:57.7]}
11. Re1 {[%clk 0:02:50.9]} 11... Nxd3 {[%clk 0:02:57.8]} 12. cxd3 {[%clk
0:02:50.1]} 12... O-O {[%clk 0:02:58.4]} 13. Nc3 {[%clk 0:02:45.8]} 13... Re8
{[%clk 0:02:55.7]} 14. b3 {[%clk 0:02:39.1]} 14... c5 {[%clk 0:02:52.8]} 15. Ba3
{[%clk 0:02:34.6]} 15... Ba6 {[%clk 0:02:50.5]} 16. Ne4 {[%clk 0:02:31.1]} 16...
Bxd3 {[%clk 0:02:42.2]} 17. Nxd6 {[%clk 0:02:21.7]} 17... Qxd6 {[%clk
0:02:43.1]} 18. Rc1 {[%clk 0:02:21.5]} 18... Rac8 {[%clk 0:02:27.5]} 19. Re3
{[%clk 0:02:16.1]} 19... e4 {[%clk 0:02:18]} 20. Ne1 {[%clk 0:02:15.8]} 20...
Ba6 {[%clk 0:02:12.1]} 21. Rec3 {[%clk 0:02:09.2]} 21... Qd7 {[%clk 0:01:45.4]}
22. Rxc5 {[%clk 0:02:00.3]} 22... Rxc5 {[%clk 0:01:43.4]} 23. Bxc5 {[%clk
0:02:00.1]} 23... Nc6 {[%clk 0:01:41]} 24. Be3 {[%clk 0:01:55.9]} 24... h6
{[%clk 0:01:34.7]} 25. a3 {[%clk 0:01:43.9]} 25... Ne5 {[%clk 0:01:33.8]} 26. h3
{[%clk 0:01:40.3]} 26... Re6 {[%clk 0:01:25.8]} 27. Rc5 {[%clk 0:01:35]} 27...
Bb7 {[%clk 0:01:12.3]} 28. Qc2 {[%clk 0:01:27.1]} 28... Re7 {[%clk 0:01:08.5]}
29. Qc3 {[%clk 0:01:22.5]} 29... Qe6 {[%clk 0:01:01.5]} 30. Bd4 {[%clk
0:01:14.3]} 30... Nf3+ {[%clk 0:00:31]} 31. gxf3 {[%clk 0:01:02]} 31... exf3
{[%clk 0:00:31.9]} 32. Re5 {[%clk 0:01:00.6]} 32... Qxh3 {[%clk 0:00:27.3]} 33.
Rxe7 {[%clk 0:00:40.7]} 33... Qg4+ {[%clk 0:00:27.2]} 34. Kh2 {[%clk 0:00:37.9]}
34... Qh4+ {[%clk 0:00:27.1]} 35. Kg1 {[%clk 0:00:38.3]} 35... Qg4+ {[%clk
0:00:23.7]} 36. Kh1 {[%clk 0:00:32.2]} 36... Qh4+ {[%clk 0:00:22.6]} 37. Kg1
{[%clk 0:00:32.9]} 37... Qg4+ {[%clk 0:00:21.9]} 1/2-1/2

[Event "Early-Titled-Tuesday-Blitz-January-30-2024"]
[Site "Chess.com"]
[Date "2024.01.30"]
[Round "9"]
[White "yjjga"]
[Black "tolia123"]
[Result "1-0"]
[WhiteElo "2461"]
[BlackElo "2178"]
[TimeControl "180+1"]
[EndTime "9:48:09 PST"]
[Termination "yjjga won by resignation"]

1. d4 {[%clk 0:03:00.9]} 1... Nf6 {[%clk 0:02:59.8]} 2. c4 {[%clk 0:02:59.5]}
2... g6 {[%clk 0:02:59.3]} 3. Nc3 {[%clk 0:02:58.3]} 3... Bg7 {[%clk 0:02:59.9]}
4. e4 {[%clk 0:02:58]} 4... d6 {[%clk 0:03:00.2]} 5. f4 {[%clk 0:02:58.2]} 5...
O-O {[%clk 0:02:59.7]} 6. Nf3 {[%clk 0:02:58.8]} 6... c5 {[%clk 0:02:59.5]} 7.
d5 {[%clk 0:02:59.5]} 7... e6 {[%clk 0:02:58.9]} 8. Be2 {[%clk 0:03:00.3]} 8...
exd5 {[%clk 0:02:59.4]} 9. exd5 {[%clk 0:03:01.2]} 9... Re8 {[%clk 0:02:39.8]}
10. O-O {[%clk 0:02:59.8]} 10... Ne4 {[%clk 0:02:39.8]} 11. Nxe4 {[%clk
0:02:50.5]} 11... Rxe4 {[%clk 0:02:40.7]} 12. Bd3 {[%clk 0:02:50.6]} 12... Re8
{[%clk 0:02:37.2]} 13. f5 {[%clk 0:02:50.5]} 13... Na6 {[%clk 0:02:22.6]} 14.
fxg6 {[%clk 0:02:43.5]} 14... fxg6 {[%clk 0:02:20.1]} 15. a3 {[%clk 0:02:43]}
15... Bg4 {[%clk 0:02:15.7]} 16. Qc2 {[%clk 0:02:39.6]} 16... Bxf3 {[%clk
0:01:49.2]} 17. Rxf3 {[%clk 0:02:40.5]} 17... Re1+ {[%clk 0:01:46.2]} 18. Rf1
{[%clk 0:02:41]} 18... Bd4+ {[%clk 0:01:44.2]} 19. Kh1 {[%clk 0:02:41.1]} 19...
Rxf1+ {[%clk 0:01:27.1]} 20. Bxf1 {[%clk 0:02:42]} 20... Qf6 {[%clk 0:01:27.1]}
21. Bh6 {[%clk 0:02:31.5]} 21... Re8 {[%clk 0:01:18.4]} 22. Bd3 {[%clk
0:02:21.9]} 22... Qh4 {[%clk 0:01:03.7]} 23. Qd2 {[%clk 0:01:57.8]} 23... Be5
{[%clk 0:00:59.5]} 24. g3 {[%clk 0:01:50.6]} 24... Bxg3 {[%clk 0:00:56.7]} 25.
Rg1 {[%clk 0:01:49.6]} 25... Bf2 {[%clk 0:00:38.9]} 26. Bg5 {[%clk 0:01:45.1]}
26... Qd4 {[%clk 0:00:33.7]} 27. Rf1 {[%clk 0:01:31.6]} 27... Be3 {[%clk
0:00:33.1]} 28. Qe2 {[%clk 0:01:24.2]} 28... Nc7 {[%clk 0:00:29.5]} 29. Bf6
{[%clk 0:01:12.2]} 29... Bf4 {[%clk 0:00:12.3]} 30. Bxd4 {[%clk 0:01:09.2]}
30... Rxe2 {[%clk 0:00:11.5]} 31. Bxe2 {[%clk 0:01:10.1]} 31... Bg5 {[%clk
0:00:10.5]} 32. Bf6 {[%clk 0:01:05.2]} 32... Be3 {[%clk 0:00:10.5]} 33. Bg4
{[%clk 0:01:01.6]} 33... h5 {[%clk 0:00:08.1]} 34. Bd7 {[%clk 0:00:59.5]} 34...
a6 {[%clk 0:00:06.2]} 35. Bd8 {[%clk 0:00:59.5]} 35... Na8 {[%clk 0:00:05.6]}
36. Be6+ {[%clk 0:00:57.2]} 36... Kg7 {[%clk 0:00:06.1]} 37. Rf7+ {[%clk
0:00:55.5]} 37... Kh6 {[%clk 0:00:06.5]} 38. Rxb7 {[%clk 0:00:55.7]} 38... a5
{[%clk 0:00:05.4]} 39. Ra7 {[%clk 0:00:54.7]} 1-0